bitfinex/quotes_ETHUSD_20240711
["timestamp","ask_amount","ask_price","bid_price","bid_amount"]
[1720711958336,4.17578001,3142.8,3142.5,0.4]
[1720711958543,5.24175878,3142.8,3142.5,0.4]
[1720711958814,0.99390001,3142.7,3142.5,0.4]
[1720711959191,0.99390001,3142.8,3142.5,0.4]
[1720711959619,0.99390001,3143.1,3142.5,0.4]
[1720711959784,1.32520002,3143.3,3142.5,0.4]
[1720711959785,0.99390001,3143.3,3142.5,0.4]
[1720711960482,0.99390001,3143.4,3142.5,0.6]
[1720711960683,0.99390001,3143.5,3142.7,2.3407]
[1720711960994,0.99390001,3143.7,3142.8,0.24043326]
[1720711961223,4.25420217,3143.9,3142.8,0.24043326]
[1720711961426,1.07343217,3143.9,3142.8,0.24043326]
[1720711962334,1.32520002,3144.0,3142.8,0.24043326]
[1720711962484,1.32520002,3144.0,3142.8,0.30405392]
[1720711962485,0.99530599,3144.0,3142.8,0.30405392]
[1720711962687,0.99530599,3144.1,3142.9,3.76442039]
[1720711962904,1.27030599,3144.2,3142.9,3.76442039]
[1720711963512,3.18056,3144.1,3142.9,0.58267039]
[1720711963832,3.18056,3144.1,3142.8,0.24043326]
[1720711963833,4.17592599,3144.1,3142.8,0.24043326]
[1720711964041,0.99530599,3144.0,3142.8,0.24043326]
[1720711964790,0.99530599,3144.1,3142.8,3.62221326]
[1720711965013,1.27030599,3144.2,3142.9,3.24528581]
[1720711965449,0.275,3144.2,3142.9,3.18167]
[1720711965636,0.275,3144.2,3143.5,2.3442]
[1720711965792,0.275,3144.2,3143.5,5.58892687]
[1720711966010,0.275,3144.2,3143.6,3.24460687]
[1720711966850,0.275,3144.2,3143.5,2.3442]
[1720711966991,0.07951704,3144.1,3143.0,2.95658833]
[1720711967344,0.6629771,3143.9,3143.0,2.2762]
[1720711968609,0.6629771,3144.1,3143.0,2.33981745]
[1720711969317,3.18067,3144.0,3143.0,2.2762]
[1720711969519,0.07952695,3143.9,3143.0,2.2762]
[1720711969720,4.23615451,3143.8,3142.8,0.4]
[1720711970036,3.18167,3143.1,3142.8,0.4]
[1720711970241,3.8447471,3142.9,3142.8,0.4]
[1720711970396,1.65451977,3143.4,3142.8,0.4]
[1720711970397,0.6613984,3143.3,3142.8,2.6918]
[1720711970604,0.6613984,3143.6,3142.9,0.06361978]
[1720711970918,0.6613984,3144.0,3143.0,0.27554198]
[1720711971503,0.6613984,3144.1,3143.0,0.27554198]
[1720711972346,0.66169311,3144.1,3143.0,0.27554198]
[1720711974328,1.09644359,3144.0,3143.0,0.27554198]
[1720711974533,0.66169311,3144.1,3143.0,0.27554198]
[1720711974708,3.84227311,3144.1,3143.0,0.27554198]
[1720711975945,3.84240311,3144.0,3143.0,0.27554198]
[1720711976148,0.66169311,3143.9,3143.0,0.27554198]
[1720711978247,0.66169311,3143.8,3143.0,0.27554198]
[1720711979310,3.84259311,3143.8,3143.0,0.27554198]
[1720711979554,0.66169311,3143.7,3143.0,0.27554198]
[1720711981160,0.66169311,3143.6,3143.0,0.27554198]
[1720711981513,0.66169311,3143.5,3143.0,0.27554198]
[1720711981717,0.66169311,3143.6,3143.0,0.27554198]
[1720711981916,0.66169311,3143.7,3143.0,0.27554198]
[1720711982762,3.84277311,3143.6,3143.0,0.27554198]
[1720711982949,3.84277311,3143.6,3142.8,0.4]
[1720711983315,3.1812,3143.5,3142.8,0.4]
[1720711983512,0.66169311,3143.4,3142.8,0.4]
[1720711983755,0.66169311,3143.5,3142.8,0.4]
[1720711983953,0.66169311,3143.4,3142.8,0.4]
[1720711984153,0.66169311,3143.1,3142.8,0.4]
[1720711984350,0.66169311,3143.2,3142.8,0.4]
[1720711984657,1.76339566,3143.1,3142.8,0.4]
[1720711984861,1.10170255,3143.0,3142.8,0.4]
[1720711985025,1.10170255,3143.0,3142.5,0.6]
[1720711985026,6.36414,3142.6,3142.5,0.6]
[1720711985232,8.10225655,3142.6,3142.5,0.6]
[1720711985434,9.42647284,3142.6,3142.5,0.6]
[1720711985851,8.10225655,3142.6,3142.5,0.6]
[1720711986061,9.75738477,3142.6,3142.5,0.6]
[1720711986361,9.75738477,3142.6,3140.5,2.5736907]
[1720711986362,3.18301,3141.7,3140.5,2.5736907]
[1720711986528,0.66132213,3141.4,3140.5,2.5736907]
[1720711987063,0.66123099,3141.4,3140.5,2.5736907]
[1720711987272,0.66123099,3141.5,3140.5,2.5736907]
[1720711987985,0.66123099,3141.4,3140.5,2.5736907]
[1720711988271,0.99184649,3141.5,3140.6,0.32103577]
[1720711988272,0.66110427,3141.5,3140.6,0.32103577]
[1720711988472,1.65276069,3141.9,3140.9,2.2773]
[1720711988473,0.66110427,3141.9,3140.9,2.2773]
[1720711988690,0.66110427,3142.3,3141.3,3.18338]
[1720711988973,0.99165641,3142.5,3141.4,0.06364464]
[1720711988974,0.66110427,3142.5,3141.4,0.06364464]
[1720711989265,0.66110427,3142.6,3141.4,0.06364464]
[1720711989484,0.66110427,3142.5,3141.5,0.32470246]
[1720711989634,0.66110427,3142.6,3141.7,2.4273]
[1720711989844,3.18151,3143.2,3141.7,2.4273]
[1720711989845,0.66110427,3143.0,3141.9,3.18272]
[1720711990120,0.66110427,3143.0,3142.0,3.24631212]
[1720711990289,0.66110427,3143.2,3142.2,2.4273]
[1720711990435,0.66110427,3143.2,3142.3,0.63097959]
[1720711990637,0.99165641,3143.4,3142.3,3.81333959]
[1720711990638,0.66110427,3143.4,3142.3,3.81333959]
[1720711990879,0.99165641,3143.5,3142.4,3.24590335]
[1720711990880,0.66110427,3143.5,3142.4,3.24590335]
[1720711991120,0.66110427,3143.5,3142.3,0.56735093]
[1720711991241,0.66110427,3143.3,3142.2,2.4273]
[1720711991436,0.66110427,3143.1,3142.2,2.4273]
[1720711991846,3.18156,3143.2,3142.2,2.4273]
[1720711991847,0.66110427,3142.9,3142.2,2.4273]
[1720711992371,0.66110427,3142.8,3141.6,2.4492]
[1720711992731,0.66110427,3142.7,3141.7,0.06364305]
[1720711992981,0.66110427,3142.7,3141.8,0.2512843]
[1720711993140,0.66110427,3142.6,3141.6,2.4492]
[1720711993535,0.66110427,3142.5,3141.6,2.4492]
[1720711994278,0.99165641,3142.6,3141.2,2.4758]
[1720711994279,3.84342427,3142.4,3141.2,2.4758]
[1720711994490,0.74067057,3142.4,3141.2,2.4758]
[1720711994696,0.74067057,3142.4,3140.7,2.4758]
[1720711994697,3.18276,3142.0,3140.7,2.4758]
[1720711994981,0.66110427,3141.9,3140.7,2.4758]
[1720711995177,3.18301,3141.7,3140.7,2.4758]
[1720711995341,0.66110427,3141.6,3140.7,2.4758]
[1720711995702,0.66110427,3141.8,3140.7,2.76065598]
[1720711995986,0.66110427,3141.9,3140.8,0.06366272]
[1720711996152,0.66110427,3142.3,3141.0,2.3564]
[1720711996477,0.66110427,3142.4,3141.2,3.18347]
[1720711996770,0.74066285,3142.3,3141.0,2.3564]
[1720711996956,3.18261,3142.1,3141.0,2.910423]
[1720711997167,3.18269,3142.0,3141.0,2.3564]
[1720711997338,0.07957482,3142.1,3140.5,2.4323907]
[1720711997339,0.07958066,3141.9,3140.5,2.4323907]
[1720711997538,3.18299,3141.7,3140.5,2.4323907]
[1720711997936,3.84419427,3141.6,3140.5,2.4323907]
[1720711998352,3.18309,3141.6,3140.5,2.4323907]
[1720711998549,0.38441943,3141.5,3140.5,2.99406677]
[1720711999655,0.6590568,3141.8,3140.5,2.99406677]
[1720711999855,0.9885852,3142.0,3140.5,2.99406677]
[1720711999856,0.6590568,3142.0,3140.6,3.24775186]
[1720712000082,4.01478873,3142.2,3140.6,3.24766186]
[1720712000253,3.1826,3142.1,3140.6,3.24766186]
[1720712000452,0.9885852,3142.4,3140.9,5.67398]
[1720712000453,0.6590568,3142.3,3140.9,5.67398]
[1720712000789,0.6590568,3142.3,3141.0,0.885785]
[1720712000790,3.8415968,3142.2,3141.0,0.885785]
[1720712000948,3.1826,3142.1,3140.9,2.4902]
[1720712001279,3.8416568,3142.1,3140.9,2.4902]
[1720712001583,3.18278,3141.9,3140.9,2.4902]
[1720712001746,6.44522902,3141.9,3140.9,2.4902]
[1720712001948,3.18289,3141.8,3140.9,2.4902]
[1720712002269,3.90710837,3141.7,3140.5,0.1153907]
[1720712002594,3.90710837,3141.7,3141.0,0.0464043]
[1720712002753,3.90710837,3141.7,3140.5,0.1153907]
[1720712002959,3.1831,3141.6,3140.5,0.1153907]
[1720712003198,3.1831,3141.6,3140.6,0.04653777]
[1720712003380,0.39072085,3141.5,3140.6,0.04653777]
[1720712004277,3.57392085,3141.5,3140.6,0.04653777]
[1720712004643,0.39072085,3141.5,3140.6,0.04653777]
[1720712004847,0.07958388,3142.0,3140.6,0.04653777]
[1720712005075,0.07957778,3141.9,3140.6,0.04653777]
[1720712005274,0.6590568,3142.1,3140.7,0.06366686]
[1720712005474,0.6590568,3142.2,3140.8,2.4604]
[1720712005658,3.3472042,3142.3,3140.8,2.50773445]
[1720712005861,3.1827,3142.0,3140.9,0.56916545]
[1720712006094,3.1827,3142.0,3140.9,0.04730481]
[1720712006252,3.26227452,3142.0,3140.9,0.04730481]
[1720712006865,3.18309,3141.6,3140.9,0.04730481]
[1720712007878,3.18309,3141.6,3140.5,0.1153907]
[1720712008076,3.18309,3141.6,3141.0,0.04720068]
[1720712008256,0.32626739,3141.5,3141.0,0.04720068]
[1720712008453,0.32626739,3141.5,3140.5,0.1153907]
[1720712008693,0.32626739,3141.5,3140.6,0.04737512]
[1720712010756,0.65809337,3142.4,3140.7,2.51806723]
[1720712010989,7.6191,3142.9,3140.7,2.51806723]
[1720712010990,4.82690342,3143.0,3141.7,2.4544]
[1720712011199,6.14294017,3143.2,3141.8,0.06364207]
[1720712011200,1.10201814,3142.9,3141.8,0.06364207]
[1720712011357,3.18172,3143.0,3141.8,0.61698919]
[1720712011796,6.36348,3143.0,3141.8,0.61698919]
[1720712012095,4.28372513,3142.9,3141.8,0.04687798]
[1720712012316,3.18215,3142.6,3141.7,2.4544]
[1720712012599,0.07955161,3142.8,3141.7,2.4544]
[1720712012600,0.07956227,3143.0,3141.9,0.04669946]
[1720712012757,3.59389348,3142.9,3141.8,0.04673281]
[1720712013095,3.59389348,3142.9,3141.3,3.18338]
[1720712013096,4.36348648,3142.8,3141.3,3.18338]
[1720712013259,1.76012491,3142.7,3141.9,0.04669946]
[1720712013455,4.78627527,3142.6,3141.1,2.3995]
[1720712013679,1.10199348,3142.5,3141.2,0.04693293]
[1720712013859,4.28417348,3142.5,3141.2,0.04693293]
[1720712014059,3.18238,3142.3,3141.2,0.04693293]
[1720712014292,1.10199348,3142.2,3141.2,0.04693293]
[1720712014516,0.74668235,3142.1,3141.2,0.04693293]
[1720712014659,1.10222396,3142.0,3141.2,0.04693293]
[1720712014864,0.74668235,3142.1,3141.2,0.04693293]
[1720712015286,3.18249,3142.2,3141.2,0.04693293]
[1720712015489,1.10216516,3142.1,3141.2,0.04693293]
[1720712015702,3.18249,3142.2,3141.2,0.04693293]
[1720712015901,1.10216979,3142.1,3141.2,0.04693293]
[1720712016211,1.10216979,3142.1,3140.6,2.4054]
[1720712016212,3.18279,3141.9,3140.6,2.4054]
[1720712016357,3.84097098,3142.4,3141.3,0.04678788]
[1720712016562,1.10221803,3142.3,3141.0,0.06365598]
[1720712016789,1.10221803,3142.2,3141.0,0.06365598]
[1720712017097,1.10221803,3142.1,3141.1,0.3715992]
[1720712017285,4.34290277,3142.6,3141.3,3.18338]
[1720712017286,1.16077277,3142.6,3141.3,3.18338]
[1720712017490,1.10210252,3142.5,3141.3,3.18338]
[1720712017667,1.10210252,3142.4,3141.4,0.04675452]
[1720712017865,3.18193,3142.8,3141.4,0.04675452]
[1720712018058,1.73526299,3142.7,3141.4,0.93556797]
[1720712018369,0.65861098,3143.1,3141.8,3.18286]
[1720712018582,0.65861098,3143.3,3142.0,5.65723]
[1720712018776,1.1017825,3143.0,3142.0,8.83986]
[1720712019004,3.83988098,3143.4,3142.1,0.05233622]
[1720712019163,1.10180998,3143.3,3142.1,0.05233622]
[1720712019363,3.83988098,3143.4,3142.1,0.05233622]
[1720712019364,1.59597908,3143.2,3142.1,0.05233622]
[1720712019612,1.10180407,3143.1,3142.1,0.05233622]
[1720712019773,3.1818,3142.9,3142.1,0.05233622]
[1720712020310,1.10187486,3142.8,3142.1,0.05233622]
[1720712020461,1.10199168,3142.7,3141.6,2.3594]
[1720712020660,3.2614641,3142.8,3142.2,0.04648774]
[1720712020661,1.53833726,3142.6,3142.2,0.04648774]
[1720712020860,1.10199168,3142.5,3141.6,2.3594]
[1720712021102,1.10199168,3142.5,3142.3,0.0464544]
[1720712021276,1.10199168,3142.5,3141.6,2.3594]
[1720712021467,1.10199168,3142.5,3142.4,0.04642107]
[1720712021664,0.21969482,3142.5,3141.6,2.3594]
[1720712021872,1.10207249,3142.5,3142.4,0.04642107]
[1720712022101,1.10207249,3142.5,3141.6,2.3594]
[1720712022102,1.09604386,3142.6,3141.6,2.3594]
[1720712022300,1.10207111,3142.5,3142.4,0.04642107]
[1720712022507,1.10207111,3142.5,3141.6,2.3594]
[1720712022706,1.10207111,3142.4,3141.6,2.3594]
[1720712022876,4.27814386,3142.6,3141.6,2.3594]
[1720712022877,1.10207111,3142.3,3141.6,2.3594]
[1720712023085,3.18226,3142.5,3141.6,2.68422134]
[1720712023299,1.10206799,3142.4,3141.6,2.3594]
[1720712023470,1.10206799,3142.3,3141.6,2.3594]
[1720712023670,3.84195828,3142.5,3141.6,2.3594]
[1720712023671,1.10206799,3142.2,3141.6,2.3594]
[1720712023891,1.10206799,3142.3,3141.6,2.3594]
[1720712024102,1.10211955,3142.2,3141.6,2.3594]
[1720712024312,0.65969828,3142.4,3141.6,2.3594]
[1720712024484,1.76177573,3142.3,3141.6,2.3594]
[1720712024685,1.2783041,3142.2,3141.6,2.3594]
[1720712024888,1.10212653,3142.1,3141.1,2.4001]
[1720712025211,0.83587585,3142.2,3141.1,2.4001]
[1720712025407,1.10218866,3142.0,3141.1,2.4001]
[1720712025575,1.10218866,3141.9,3141.1,2.4001]
[1720712025774,5.21983038,3141.9,3141.1,2.4001]
[1720712026044,1.76188694,3141.8,3141.1,2.4001]
[1720712026199,1.76188694,3141.8,3140.6,2.3249]
[1720712026200,1.76188694,3141.7,3140.6,2.3249]
[1720712026509,1.76188694,3141.6,3140.6,2.3249]
[1720712026670,3.1831,3141.6,3140.6,2.3249]
[1720712026869,3.98463957,3141.6,3140.6,2.88735607]
[1720712027217,0.80153957,3141.6,3140.6,2.88735607]
[1720712027376,3.18302,3141.7,3140.6,2.88735607]
[1720712027577,1.76201441,3141.6,3140.6,2.88735607]
[1720712027797,0.65969828,3141.6,3141.4,0.2]
[1720712028316,0.65969828,3141.5,3141.4,0.2]
[1720712028516,3.84271828,3141.7,3141.4,0.2]
[1720712028714,2.25314971,3141.6,3141.4,0.2]
[1720712028918,1.15088327,3141.6,3141.4,0.2]
[1720712029276,0.65969828,3141.5,3141.4,0.2]
[1720712029504,1.10232244,3141.5,3141.4,0.2]
[1720712030016,1.48073241,3141.6,3141.4,0.2]
[1720712030202,1.10230522,3141.5,3141.4,0.2]
[1720712030399,2.42170178,3141.5,3141.4,0.2]
[1720712030590,1.55881967,3141.5,3141.4,0.2]
[1720712030777,2.55022545,3141.5,3141.4,0.2]
[1720712030978,1.55881967,3141.5,3141.4,0.2]
[1720712031484,1.77591101,3141.5,3141.4,0.2]
[1720712031821,4.9663314,3141.5,3141.4,0.2]
[1720712031986,10.13113092,3141.5,3141.4,0.4]
[1720712032190,10.13037653,3141.5,3141.4,0.4]
[1720712032407,12.41597653,3141.5,3141.4,0.4]
[1720712032579,10.43525765,3141.5,3141.4,0.4]
[1720712032777,12.41597653,3141.5,3141.4,0.4]
[1720712033911,8.0050373,3141.5,3141.4,0.4]
[1720712034618,9.65613981,3141.5,3141.4,0.4]
[1720712034814,9.65603159,3141.5,3141.4,0.4]
[1720712035023,9.65602873,3141.5,3141.4,0.4]
[1720712035223,8.00492026,3141.5,3141.4,0.4]
[1720712035524,8.14950847,3141.5,3141.4,0.4]
[1720712035729,10.13084206,3141.5,3141.4,0.4]
[1720712036017,8.14950847,3141.5,3141.4,0.4]
[1720712036194,10.13084206,3141.5,3141.4,0.4]
[1720712036888,8.14950847,3141.5,3141.4,0.4]
[1720712037791,3.18402,3140.7,3140.5,0.1153907]
[1720712038136,5.60735278,3140.6,3140.5,0.1153907]
[1720712038341,5.93753029,3140.6,3140.5,0.1153907]
[1720712038481,9.20123976,3140.6,3140.5,0.1153907]
[1720712038835,9.20123976,3140.6,3139.1,2.4282]
[1720712038836,3.18477,3140.0,3139.1,2.4282]
[1720712038989,0.65996954,3139.9,3139.2,0.24282]
[1720712039190,0.73959573,3139.9,3139.2,0.24282]
[1720712039488,0.65996954,3139.8,3139.1,2.4282]
[1720712039710,0.65996954,3139.7,3138.2,3.18646]
[1720712040027,0.65996954,3139.4,3138.2,3.18646]
[1720712040196,0.65996954,3139.3,3138.2,3.18646]
[1720712040393,0.65996954,3139.3,3138.4,3.18633]
[1720712040616,0.65996954,3139.3,3138.5,0.637274]
[1720712040787,3.18488,3139.9,3138.5,0.637274]
[1720712040788,0.3191,3140.3,3139.2,3.18552]
[1720712041127,0.65959191,3140.0,3139.2,3.18552]
[1720712041332,0.65959191,3140.0,3139.0,3.18564]
[1720712041535,0.98938787,3140.1,3139.1,3.746994]
[1720712041536,0.65959191,3139.9,3139.1,3.746994]
[1720712041754,0.65959191,3140.0,3139.2,3.18548]
[1720712041895,0.65959191,3140.1,3139.3,3.24909548]
[1720712042096,0.65959191,3140.4,3139.7,2.3103]
[1720712042592,0.65959191,3140.4,3139.7,5.4953]
[1720712042806,0.65959191,3140.4,3139.9,3.18479]
[1720712043027,1.64897978,3140.8,3140.0,3.1847]
[1720712043230,0.65959191,3140.8,3140.0,3.1847]
[1720712043605,0.65959191,3140.9,3140.1,0.06368143]
[1720712043825,0.65959191,3141.2,3140.4,3.18428]
[1720712044345,0.65959191,3141.2,3140.6,2.2919]
[1720712044532,1.31918383,3141.6,3140.8,3.18382]
[1720712044533,0.65959191,3141.6,3140.8,3.18382]
[1720712044721,0.98938787,3141.7,3140.8,3.18382]
[1720712044722,0.65959191,3141.5,3140.8,3.18382]
[1720712045028,0.98938787,3141.7,3140.8,3.18381]
[1720712045029,0.65959191,3141.7,3140.8,3.18381]
[1720712045243,0.65959191,3141.7,3140.9,3.18378]
[1720712045417,0.98938787,3141.8,3140.9,3.502158]
[1720712045418,0.65959191,3141.8,3140.9,3.502158]
[1720712045606,0.65959191,3141.7,3140.9,3.502158]
[1720712046310,0.65959191,3141.6,3140.9,3.502158]
[1720712047052,0.66010182,3141.6,3140.9,3.502158]
[1720712047254,0.66010182,3141.7,3141.0,3.18369]
[1720712047456,0.66010182,3141.7,3140.9,0.318378]
[1720712047621,0.66010182,3141.6,3140.9,0.318378]
[1720712047813,0.66010182,3141.7,3140.9,3.502148]
[1720712048318,0.82512728,3141.7,3140.7,3.18391]
[1720712048536,0.66027005,3141.6,3140.8,3.18388]
[1720712048759,0.66027005,3141.5,3140.8,3.18388]
[1720712049035,0.66027005,3141.5,3140.6,5.47592]
[1720712049210,0.66027005,3141.5,3140.7,3.184]
[1720712049410,0.66027005,3141.5,3140.7,4.0818348]
[1720712049706,0.66027005,3141.5,3140.7,0.8978348]
[1720712049908,0.73985419,3141.5,3140.0,2.281]
[1720712050340,0.66027005,3141.4,3140.0,2.281]
[1720712051053,0.66027005,3141.4,3140.3,3.18433]
[1720712051350,0.66027005,3141.4,3140.6,3.18403]
[1720712051560,0.66027005,3141.5,3140.7,3.184]
[1720712051844,0.84184011,3141.5,3140.6,3.18403]
[1720712052055,0.66027005,3141.4,3140.0,5.46569]
[1720712052222,0.73985227,3141.4,3140.0,5.46569]
[1720712052415,0.66027005,3141.3,3140.0,5.46569]
[1720712052759,3.1837,3141.0,3139.8,7.29]
[1720712052975,0.3191,3141.4,3139.3,12.12]
[1720712052976,0.66027005,3140.7,3139.3,2.3124]
[1720712053246,0.66027005,3140.4,3139.3,2.3124]
[1720712053469,0.66027005,3140.4,3139.4,0.06369519]
[1720712053809,0.66027005,3140.4,3139.4,3.24894519]
[1720712054007,0.99040507,3140.6,3139.4,3.24894519]
[1720712054008,0.66027005,3140.5,3139.4,3.24894519]
[1720712054254,0.66027005,3140.5,3139.6,3.18505]
[1720712054421,0.66027005,3140.5,3139.3,2.3124]
[1720712054422,0.73987614,3140.5,3139.3,2.3124]
[1720712054628,0.66027005,3140.2,3138.9,3.18573]
[1720712054823,3.84488005,3140.1,3138.8,2.2523]
[1720712055049,0.66027005,3139.8,3138.8,2.2523]
[1720712055271,1.18268279,3139.7,3138.4,3.18627]
[1720712055412,1.94763448,3139.6,3138.5,0.318627]
[1720712055614,0.66027005,3139.5,3138.5,0.318627]
[1720712055811,0.18429528,3139.6,3138.5,0.318627]
[1720712056227,0.84456533,3139.6,3138.5,0.318627]
[1720712056648,0.18429528,3139.6,3138.5,0.318627]
[1720712056854,0.66027005,3139.8,3138.6,0.6691157]
[1720712057070,0.66027005,3140.1,3139.0,3.18564]
[1720712057361,0.66027005,3140.2,3138.8,3.18584]
[1720712057542,0.66027005,3140.2,3138.9,3.18579]
[1720712057543,0.66027005,3140.0,3138.9,3.18579]
[1720712057852,3.84496005,3140.1,3139.0,0.06369531]
[1720712058066,3.18481,3139.9,3138.4,0.32866421]
[1720712058353,1.76324278,3139.8,3138.1,2.448]
[1720712058656,5.02803137,3139.7,3138.2,3.18649]
[1720712058812,3.18514,3139.6,3138.1,2.448]
[1720712059165,3.26487848,3139.5,3138.1,2.448]
[1720712059453,0.32648785,3139.4,3138.2,0.56347]
[1720712059638,3.26511837,3139.3,3138.2,0.56347]
[1720712060009,0.07964837,3139.2,3138.2,0.56347]
[1720712060369,3.1857,3139.1,3137.6,3.1871]
[1720712060519,3.26538448,3139.0,3137.7,3.18704]
[1720712061042,3.26538448,3139.0,3137.6,3.18714]
[1720712061360,3.26538448,3139.0,3137.6,3.24673785]
[1720712061361,6.45119448,3139.0,3137.6,3.24673785]
[1720712061518,3.18583,3138.9,3137.6,3.24673785]
[1720712061718,0.637156,3138.8,3137.7,0.32467379]
[1720712062820,0.637156,3138.8,3137.4,3.18726]
[1720712063016,3.823086,3138.8,3137.4,3.18726]
[1720712063257,3.823086,3138.8,3137.3,0.1153907]
[1720712063258,4.1720979,3139.4,3137.5,0.12336773]
[1720712063430,0.40613222,3139.4,3138.0,3.18672]
[1720712063767,0.32648785,3139.4,3138.1,0.06371549]
[1720712064268,0.32648785,3139.4,3137.6,2.3455]
[1720712064269,0.40613219,3139.4,3137.6,5.53257]
[1720712064436,3.18555,3139.2,3137.8,3.18692]
[1720712064777,3.18555,3139.2,3137.9,0.318692]
[1720712064950,3.51180785,3139.4,3137.9,0.318692]
[1720712065145,6.69721785,3139.4,3138.0,0.06372039]
[1720712065336,3.26513669,3139.3,3137.9,0.318692]
[1720712065726,3.18549,3139.3,3138.0,0.0637174]
[1720712065963,0.35119779,3139.2,3138.1,0.35691894]
[1720712067235,3.18551,3139.3,3138.1,0.35691894]
[1720712067436,3.26522773,3139.2,3137.8,3.18691]
[1720712067681,3.26529931,3139.1,3137.6,8.71967]
[1720712067840,3.18573,3139.0,3137.6,5.53254]
[1720712068041,3.26549441,3138.9,3137.6,2.40509785]
[1720712068339,0.32654944,3138.8,3137.6,2.8669483]
[1720712068540,0.32654944,3138.8,3137.6,6.0540883]
[1720712068779,3.2653977,3139.0,3137.6,6.0540883]
[1720712069150,3.18585,3138.9,3137.6,6.03370366]
[1720712069473,3.18585,3138.9,3137.6,2.84656366]
[1720712070178,3.18585,3138.9,3137.6,6.03370366]
[1720712070485,3.18585,3138.9,3137.6,2.84656366]
[1720712070486,3.26550575,3138.9,3137.6,2.84656366]
[1720712070657,3.18564,3139.1,3137.7,0.28465637]
[1720712071054,3.18575,3139.0,3137.8,0.03921022]
[1720712071379,3.18583,3138.9,3137.8,0.03921022]
[1720712071796,3.18578,3139.0,3137.8,0.03921022]
[1720712072081,3.18562,3139.1,3137.8,0.10293507]
[1720712072382,0.318562,3139.0,3137.8,0.10293507]
[1720712072747,0.318562,3139.0,3137.8,3.28982507]
[1720712072950,0.07965419,3139.6,3137.8,3.28982507]
[1720712072951,3.18585,3138.9,3137.8,0.03921022]
[1720712073955,3.26558637,3138.8,3137.8,0.03921022]
[1720712074163,3.18593,3138.8,3137.6,2.3455]
[1720712074359,3.18585,3138.9,3137.9,0.03918287]
[1720712074689,2.5739,3139.7,3138.2,3.18648]
[1720712074900,2.5739,3139.7,3137.9,0.06372684]
[1720712074901,3.18465,3140.1,3138.6,3.1861]
[1720712075187,3.05287578,3140.4,3138.3,2.53060538]
[1720712075188,3.26410404,3140.3,3138.8,3.18583]
[1720712075357,3.26410404,3140.3,3138.7,0.04284042]
[1720712075358,3.18452,3140.2,3138.9,3.50867704]
[1720712075573,3.5032,3140.7,3138.9,3.50867704]
[1720712075574,3.02857578,3140.9,3139.2,3.18544]
[1720712075764,3.18416,3140.6,3139.1,3.18552]
[1720712075950,3.18416,3140.6,3139.3,3.22791924]
[1720712075951,3.58287492,3140.6,3139.3,3.22791924]
[1720712076148,0.35828749,3140.5,3139.4,0.32279192]
[1720712076458,0.35828749,3140.5,3139.4,0.3652611]
[1720712076659,0.35828749,3140.5,3139.5,0.06369194]
[1720712076852,0.98471368,3141.4,3139.6,2.4851]
[1720712077050,3.58200581,3141.4,3140.0,3.1847]
[1720712077250,3.26290581,3141.4,3139.6,2.52750907]
[1720712077512,3.18299,3141.7,3140.1,3.23132846]
[1720712077648,3.18299,3141.7,3140.3,3.1844]
[1720712077649,0.07958843,3141.7,3140.3,3.1844]
[1720712077852,0.40582727,3141.7,3140.4,5.80853]
[1720712078153,0.40582727,3141.7,3140.4,5.86073034]
[1720712078564,3.58881727,3141.7,3140.4,2.35800034]
[1720712078803,3.1833,3141.4,3140.4,0.05220034]
[1720712079115,0.07959762,3141.3,3139.9,2.3126]
[1720712079274,3.26301762,3141.3,3139.9,2.3126]
[1720712079483,6.82438884,3141.7,3140.1,3.18459]
[1720712079677,3.1832,3141.5,3140.2,0.32482726]
[1720712080504,3.1833,3141.4,3140.2,0.32482726]
[1720712080694,1.0664358,3141.6,3140.1,3.1846]
[1720712081007,0.07959341,3141.5,3140.1,3.1846]
[1720712081180,0.07959337,3141.6,3140.0,3.18463]
[1720712081382,0.07959337,3141.6,3139.9,2.3126]
[1720712081383,0.07958847,3141.6,3140.2,3.18441]
[1720712081784,0.07958847,3141.6,3140.3,3.18439]
[1720712081986,0.07958847,3141.6,3140.4,0.63688]
[1720712082208,0.07958983,3141.7,3140.4,3.82117]
[1720712082724,3.18329,3141.4,3139.9,2.3126]
[1720712082874,3.18365,3141.1,3139.9,2.3126]
[1720712083069,0.07960333,3141.0,3139.9,2.3126]
[1720712083482,3.1839,3140.8,3139.2,5.56094]
[1720712083697,0.3191,3141.2,3139.2,5.56094]
[1720712083698,0.07961173,3140.7,3139.2,5.561]
[1720712084013,3.26370173,3140.7,3139.3,3.74152]
[1720712084320,3.18469,3140.1,3139.2,2.3755]
[1720712084609,0.079629,3140.0,3138.6,3.18606]
[1720712084824,3.264339,3140.0,3138.7,5.5891]
[1720712085276,3.264339,3140.0,3138.7,2.4031]
[1720712085481,0.079629,3140.0,3138.7,2.4031]
[1720712086290,3.18512,3139.6,3138.1,7.24]
[1720712086488,3.18512,3139.6,3138.2,2.3514]
[1720712086489,0.07963845,3139.5,3138.2,2.3514]
[1720712086803,0.39815235,3139.6,3138.3,3.18643]
[1720712087007,0.65597829,3140.2,3138.4,3.18626]
[1720712087008,0.07964039,3139.8,3138.4,3.18626]
[1720712087189,0.07964039,3139.8,3138.5,3.18615]
[1720712088020,3.18473,3140.0,3138.6,0.06370705]
[1720712088218,3.18453,3140.2,3138.7,3.18601]
[1720712088419,3.18453,3140.2,3138.8,0.06370314]
[1720712088637,0.3191,3140.0,3138.9,0.32497131]
[1720712088836,3.18413,3140.6,3139.0,2.38630315]
[1720712089127,3.18461,3140.1,3139.0,2.3226]
[1720712089325,3.26423722,3140.1,3139.0,2.3226]
[1720712089494,0.64488272,3140.0,3139.0,2.3226]
[1720712089689,3.82963272,3140.0,3139.0,2.3226]
[1720712090400,0.64488272,3140.0,3139.0,2.3226]
[1720712090601,3.58333722,3140.1,3139.1,0.04671145]
[1720712091121,3.18456,3140.2,3139.1,0.04671145]
[1720712091495,3.18456,3140.2,3139.1,0.1104106]
[1720712091804,3.18456,3140.2,3136.4,3.18834]
[1720712091805,3.18584,3138.9,3136.4,3.18834]
[1720712092011,2.996,3139.2,3136.1,5.2682]
[1720712092012,2.996,3138.4,3136.1,5.2682]
[1720712092185,3.18613,3138.6,3137.1,2.2682]
[1720712092389,0.47183931,3138.5,3137.1,2.2682]